fUSD/lending_fUSD_20260315
["ID","MTS","AMOUNT","RATE_DAILY","PERIOD"]
[408412041,1773575443727,-223.55740707,0.00040821,2]
[408412042,1773575443736,-500.0,0.00040821,2]
[408412043,1773575443745,-200.0,0.00040821,2]
[408412044,1773575443755,-175.17354433,0.00040821,2]
[408412045,1773575443763,-615.29,0.00040821,2]
[408412046,1773575443773,-615.29,0.00040821,2]
[408412047,1773575443784,-615.29,0.00040821,2]
[408412048,1773575443793,-615.29,0.00040821,2]
[408412049,1773575443803,-615.29,0.00040821,2]
[408412050,1773575443812,-615.29,0.00040821,2]
[408412051,1773575443821,-230.6066911,0.00040821,2]
[408412052,1773575443830,-615.29,0.00040821,2]
[408412053,1773575443840,-615.29,0.00040821,2]
[408412054,1773575443849,-615.29,0.00040821,2]
[408412055,1773575443858,-615.29,0.00040821,2]
[408412056,1773575443867,-228.44778749,0.00040821,2]
[408412057,1773575443877,-151.96128209,0.00040821,2]
[408412058,1773575443886,-321.12765153,0.00040821,2]
[408412059,1773575443895,-154.82516968,0.00040821,2]
[408412060,1773575443904,-304.3895657,0.00040821,2]
[408412061,1773575443913,-150.35614638,0.00040821,2]
[408412062,1773575443922,-163.57413135,0.00040821,2]
[408412063,1773575443931,-440.96103482,0.00040821,2]
[408412064,1773575443939,-287.77827315,0.00040821,2]
[408412065,1773575443949,-500.0,0.00040821,2]
[408412066,1773575443959,-500.0,0.00040821,2]
[408412067,1773575443968,-223.17510497,0.00040821,2]
[408412068,1773575443976,-197.72613843,0.00040821,2]
[408412069,1773575443985,-500.0,0.00040821,2]
[408412070,1773575443994,-500.0,0.00040821,2]
[408412071,1773575444002,-500.0,0.00040821,2]
[408412072,1773575444012,-500.0,0.00040821,2]
[408412073,1773575444020,-500.0,0.00040821,2]
[408412074,1773575444029,-500.0,0.00040821,2]
[408412075,1773575444038,-500.0,0.00040821,2]
[408412076,1773575444047,-500.0,0.00040821,2]
[408412077,1773575444057,-500.0,0.00040821,2]
[408412078,1773575444068,-500.0,0.00040821,2]
[408412079,1773575444077,-500.0,0.00040821,2]
[408412080,1773575444087,-180.17291495,0.00040821,2]
[408412081,1773575444096,-500.0,0.00040821,2]
[408412082,1773575444105,-500.0,0.00040821,2]
[408412083,1773575444115,-500.0,0.00040821,2]
[408412084,1773575444124,-500.0,0.00040821,2]
[408412085,1773575444134,-500.0,0.00040821,2]
[408412086,1773575444143,-500.0,0.00040821,2]
[408412087,1773575444152,-500.0,0.00040821,2]
[408412088,1773575444161,-500.0,0.00040821,2]
[408412089,1773575444170,-500.0,0.00040821,2]
[408412090,1773575444179,-500.0,0.00040821,2]
[408412091,1773575444188,-500.0,0.00040821,2]
[408412092,1773575444197,-204.84204091,0.00040821,2]
[408412093,1773575444207,-500.0,0.00040821,2]
[408412094,1773575444216,-301.64520734,0.00040821,2]
[408412095,1773575444225,-497.72786818,0.00040821,2]
[408412096,1773575444235,-197.44344473,0.00040821,2]
[408412097,1773575444246,-1000.0,0.00040822,120]
[408412098,1773575444257,-1777.0,0.00040834,5]
[408412099,1773575444266,-172.0,0.00040872,2]
[408412100,1773575444278,-2100.0,0.000409,14]
[408412101,1773575444287,-191.05,0.000409,43]
[408412102,1773575444297,-1043.0,0.0004095,60]
[408412103,1773575444309,-1069.72240354,0.00040957,2]
[408412104,1773575444320,-1069.72240354,0.00040957,2]
[408412105,1773575444329,-1069.72240354,0.00040957,2]
[408412106,1773575444339,-1069.72240354,0.00040957,2]
[408412107,1773575444349,-1069.72240354,0.00040957,2]
[408412108,1773575444360,-1069.72240354,0.00040957,2]
[408412109,1773575444493,-1069.72240354,0.00040957,2]
[408412110,1773575444503,-1069.72240354,0.00040957,2]
[408412111,1773575444515,-1069.72240354,0.00040957,2]
[408412112,1773575444526,-1069.72240354,0.00040957,2]
[408412113,1773575444535,-1069.72240354,0.00040957,2]
[408412114,1773575444544,-1069.72240354,0.00040957,2]
[408412115,1773575444555,-1069.72240354,0.00040957,2]
[408412116,1773575444564,-501.81517205,0.0004097,3]
[408412117,1773575444574,-400.0,0.0004097,3]
[408412118,1773575444583,-400.0,0.0004097,3]
[408412119,1773575444592,-400.0,0.0004097,3]
[408412120,1773575444601,-587.99926426,0.00040996,2]
[408412121,1773575444614,-603.720356,0.00040996,2]
[408412122,1773575444623,-369.8251046,0.00040997,2]
[408412123,1773575444633,-1444.40475875,0.00040997,2]
[408412124,1773575444657,-800.15524125,0.00040997,2]
[408412125,1773575444667,-500.0,0.00040997,2]
[408412126,1773575444675,-2775.54,0.00040998,2]
[408412127,1773575444685,-500.0,0.00040998,2]
[408412128,1773575444693,-500.0,0.00040998,2]
[408412129,1773575444704,-448.17269313,0.00040998,2]
[408412130,1773575444728,-51.82730687,0.00040998,2]
[408412131,1773575444739,-225.59244283,0.00040998,2]
[408412132,1773575444755,-274.40755717,0.00040998,2]
[408412133,1773575444764,-7.24144283,0.00040998,2]
[408412134,1773575444779,-1558.81911971,0.00040998,2]
[408412135,1773575444790,-1298.98943746,0.00040998,2]
[408412136,1773575444800,-3190.33,0.00040998,2]
[408412137,1773575444810,-5521.91005751,0.00040998,2]
[408412138,1773575444823,-789.47421459,0.00040998,2]
[408412139,1773575444834,-448.13622011,0.00040998,2]
[408412140,1773575444960,-2463.0,0.00030682,2]
[408412141,1773575444969,-12088.0,0.00040821,60]
[408412142,1773575444978,-605.0,0.00040821,60]
[408412143,1773575444987,-21038.0001916,0.00040998,2]
[408412144,1773575444998,-4668.38931619,0.00040998,2]
[408412145,1773575445008,-14.85015368,0.00040998,2]
[408412146,1773575445019,-1473.27984632,0.00040998,2]
[408412147,1773575445028,-500.0,0.00040998,2]
[408412148,1773575445038,-14456.03,0.00040998,2]
[408412149,1773575445047,-7991.6,0.00040998,2]
[408412150,1773575445057,-2005.3,0.00040998,2]
[408412151,1773575445066,-500.0,0.00040998,2]
[408412152,1773575445076,-615.29,0.00040998,2]
[408412153,1773575445086,-500.0,0.00040998,2]
[408412154,1773575445096,-500.0,0.00040998,2]
[408412155,1773575445106,-15436.71825947,0.00040999,6]
[408412158,1773575445696,-386.62084125,0.00024825,2]
[408412159,1773575445710,-179.626,0.000383,120]
[408412160,1773575445721,-2353.1727994,0.0004095,60]
[408412161,1773575445961,-11330.96520324,0.00040999,6]
[408412163,1773575446584,-18636.75942096,0.00040999,6]
[408412164,1773575446593,-2244.56,0.00040999,2]
[408412165,1773575446603,-701.57,0.00040999,2]
[408412166,1773575446611,-500.0,0.00040999,2]
[408412167,1773575446621,-2775.54,0.00040999,2]
[408412168,1773575446631,-500.0,0.00040999,2]
[408412169,1773575446640,-500.0,0.00040999,2]
[408412170,1773575446650,-6888.0,0.00040999,30]
[408412171,1773575446661,-520.0,0.00040999,30]
[408412172,1773575446673,-769.53080553,0.00040999,30]
[408412173,1773575446684,-151.0,0.00040999,30]
[408412174,1773575446695,-250.0,0.00040999,30]
[408412175,1773575446705,-7142.856,0.00040999,30]
[408412176,1773575446716,-253.14661609,0.00040999,30]
[408412177,1773575446727,-539.24,0.00040999,30]
[408412178,1773575446736,-156.587,0.00040999,30]
[408412179,1773575446747,-500.0,0.00040999,30]
[408412180,1773575446756,-200.0,0.00040999,30]
[408412181,1773575446765,-250.0,0.00040999,30]
[408412182,1773575446775,-7407.141672,0.00040999,30]
[408412183,1773575446786,-559.19188,0.00040999,30]
[408412184,1773575446795,-238.90803622,0.00040999,30]
[408412185,1773575446804,-267.10469466,0.00040999,30]
[408412186,1773575446814,-500.0,0.00040999,30]
[408412187,1773575446823,-250.0,0.00040999,30]
[408412188,1773575446834,-254.36819085,0.00040999,30]
[408412189,1773575446844,-7681.20591386,0.00040999,30]
[408412190,1773575446853,-500.0,0.00040999,30]
[408412191,1773575446864,-250.0,0.00040999,30]
[408412192,1773575446873,-500.0,0.00040999,30]
[408412193,1773575446882,-7965.41053268,0.00040999,30]
[408412194,1773575446893,-500.0,0.00040999,30]
[408412195,1773575446904,-250.0,0.00040999,30]
[408412196,1773575446913,-500.0,0.00040999,30]
[408412197,1773575446923,-4330.9166372,0.00040999,30]
[408412198,1773575446932,-500.0,0.00040999,30]
[408412199,1773575446941,-250.0,0.00040999,30]
[408412200,1773575446951,-500.0,0.00040999,30]
[408412201,1773575446959,-1500.0,0.00040999,30]
[408412202,1773575446969,-500.0,0.00040999,30]
[408412203,1773575446978,-1500.0,0.00040999,30]
[408412204,1773575446987,-250.0,0.00040999,30]
[408412205,1773575446997,-220.0,0.00040999,30]
[408412206,1773575447006,-500.0,0.00040999,30]
[408412207,1773575447016,-1500.0,0.00040999,30]
[408412208,1773575447027,-500.0,0.00040999,30]
[408412209,1773575447037,-545.44795777,0.00040999,30]
[408412210,1773575447046,-500.0,0.00040999,30]
[408412211,1773575447056,-250.0,0.00040999,30]
[408412212,1773575447066,-230.31799637,0.00040999,30]
[408412213,1773575447075,-500.0,0.00040999,30]
[408412214,1773575447085,-1500.0,0.00040999,30]
[408412215,1773575447094,-500.0,0.00040999,30]
[408412216,1773575447103,-500.0,0.00040999,30]
[408412217,1773575447112,-500.0,0.00040999,30]
[408412218,1773575447122,-250.0,0.00040999,30]
[408412219,1773575447131,-500.0,0.00040999,30]
[408412220,1773575447141,-1500.0,0.00040999,30]
[408412221,1773575447150,-500.0,0.00040999,30]
[408412222,1773575447161,-500.0,0.00040999,30]
[408412223,1773575447170,-500.0,0.00040999,30]
[408412224,1773575447179,-1500.0,0.00040999,30]
[408412225,1773575447188,-500.0,0.00040999,30]
[408412226,1773575447197,-500.0,0.00040999,30]
[408412227,1773575447206,-500.0,0.00040999,2]
[408412228,1773575447215,-500.0,0.00040999,30]
[408412229,1773575447224,-1500.0,0.00040999,30]
[408412230,1773575447233,-500.0,0.00040999,30]
[408412231,1773575447242,-500.0,0.00040999,30]
[408412232,1773575447251,-500.0,0.00040999,30]
[408412233,1773575447260,-1500.0,0.00040999,30]
[408412234,1773575447270,-500.0,0.00040999,30]
[408412235,1773575447279,-500.0,0.00040999,30]
[408412236,1773575447288,-200.0,0.00040999,30]
[408412237,1773575447297,-500.0,0.00040999,30]
[408412238,1773575447306,-1500.0,0.00040999,30]
[408412239,1773575447315,-500.0,0.00040999,30]
[408412240,1773575447324,-500.0,0.00040999,30]
[408412241,1773575447333,-500.0,0.00040999,30]
[408412242,1773575447343,-500.0,0.00040999,30]
[408412243,1773575447352,-1500.0,0.00040999,30]
[408412244,1773575447361,-500.0,0.00040999,30]
[408412245,1773575447370,-184.61929413,0.00040999,30]
[408412246,1773575447380,-500.0,0.00040999,30]
[408412247,1773575447389,-151.0,0.00040999,30]
[408412248,1773575447398,-518.5,0.00040999,30]
[408412249,1773575447407,-500.0,0.00040999,30]
[408412250,1773575447416,-500.0,0.00040999,30]
[408412251,1773575447426,-151.0,0.00040999,30]
[408412252,1773575447435,-537.6845,0.00040999,30]
[408412253,1773575447444,-500.0,0.00040999,30]
[408412254,1773575447453,-500.0,0.00040999,30]
[408412255,1773575447464,-500.0,0.00040999,30]
[408412256,1773575447473,-151.0,0.00040999,30]
[408412257,1773575447482,-557.5788265,0.00040999,30]
[408412258,1773575447491,-250.0,0.00040999,30]
[408412259,1773575447500,-500.0,0.00040999,30]
[408412260,1773575447509,-151.0,0.00040999,30]
[408412261,1773575447517,-500.0,0.00040999,30]
[408412262,1773575447526,-250.0,0.00040999,30]
[408412263,1773575447535,-500.0,0.00040999,30]
[408412264,1773575447546,-151.0,0.00040999,30]
[408412265,1773575447556,-151.0,0.00040999,30]
[408412266,1773575447565,-500.0,0.00040999,30]
[408412267,1773575447575,-250.0,0.00040999,30]
[408412268,1773575447584,-151.0,0.00040999,30]
[408412269,1773575447593,-500.0,0.00040999,30]
[408412270,1773575447603,-500.0,0.00040999,30]
[408412271,1773575447612,-250.0,0.00040999,30]
[408412272,1773575447621,-151.0,0.00040999,30]
[408412273,1773575447630,-500.0,0.00040999,30]
[408412274,1773575447640,-500.0,0.00040999,30]
[408412275,1773575447649,-250.0,0.00040999,30]
[408412276,1773575447659,-151.0,0.00040999,30]
[408412277,1773575447668,-153.37806346,0.00040999,30]
[408412278,1773575447678,-250.0,0.00040999,30]
[408412279,1773575447687,-500.0,0.00040999,30]
[408412280,1773575447696,-500.0,0.00040999,30]
[408412281,1773575447706,-151.0,0.00040999,30]
[408412282,1773575447717,-250.0,0.00040999,30]
[408412283,1773575447726,-250.0,0.00040999,30]
[408412284,1773575447737,-500.0,0.00040999,30]
[408412285,1773575447746,-151.0,0.00040999,30]
[408412286,1773575447756,-250.0,0.00040999,30]
[408412287,1773575447765,-500.0,0.00040999,30]
[408412288,1773575447774,-250.0,0.00040999,30]
[408412289,1773575447786,-500.0,0.00040999,30]
[408412290,1773575447795,-250.0,0.00040999,30]
[408412291,1773575447804,-4840.08093391,0.00040999,30]
[408412292,1773575447814,-500.0,0.00040999,30]
[408412293,1773575447823,-151.0,0.00040999,30]
[408412294,1773575447831,-250.0,0.00040999,30]
[408412295,1773575447840,-500.0,0.00040999,30]
[408412296,1773575447849,-151.0,0.00040999,30]
[408412297,1773575447858,-250.0,0.00040999,30]
[408412298,1773575447867,-250.0,0.00040999,30]
[408412299,1773575447876,-500.0,0.00040999,30]
[408412300,1773575447885,-151.0,0.00040999,30]
[408412301,1773575447894,-250.0,0.00040999,30]
[408412302,1773575447903,-500.0,0.00040999,30]
[408412303,1773575447912,-151.0,0.00040999,30]
[408412304,1773575447921,-250.0,0.00040999,30]
[408412305,1773575447930,-500.0,0.00040999,30]
[408412306,1773575447940,-151.0,0.00040999,30]
[408412307,1773575447950,-250.0,0.00040999,30]
[408412308,1773575447959,-500.0,0.00040999,30]
[408412309,1773575447968,-151.0,0.00040999,30]
[408412310,1773575447978,-200.0,0.00040999,30]
[408412311,1773575447987,-266.27214247,0.00040999,30]
[408412312,1773575447997,-151.0,0.00040999,30]
[408412313,1773575448007,-200.0,0.00040999,30]
[408412314,1773575448130,-503.47352033,0.00040999,30]
[408412315,1773575448140,-151.0,0.00040999,30]
[408412316,1773575448150,-151.0,0.00040999,30]
[408412317,1773575448159,-151.0,0.00040999,30]
[408412318,1773575448169,-253.8982517,0.00040999,30]
[408412319,1773575448178,-156.587,0.00040999,30]
[408412320,1773575448187,-1000.0,0.00040999,30]
[408412321,1773575448196,-162.380719,0.00040999,30]
[408412322,1773575448205,-1042.61990826,0.00040999,30]
[408412323,1773575448214,-168.3888056,0.00040999,30]
[408412324,1773575448223,-2225.09471039,0.00040999,30]
[408412325,1773575448233,-500.0,0.00040999,2]
[408412326,1773575448242,-170.0,0.00040999,30]
[408412327,1773575448251,-176.29,0.00040999,30]
[408412328,1773575448260,-500.0,0.00040999,30]
[408412329,1773575448269,-182.81273,0.00040999,30]
[408412330,1773575448278,-500.0,0.00040999,30]
[408412331,1773575448287,-189.57680101,0.00040999,30]
[408412332,1773575448296,-500.0,0.00040999,30]
[408412333,1773575448305,-196.59114265,0.00040999,30]
[408412334,1773575448315,-500.0,0.00040999,30]
[408412335,1773575448323,-203.86501493,0.00040999,30]
[408412336,1773575448332,-500.0,0.00040999,30]
[408412337,1773575448341,-211.40802048,0.00040999,30]
[408412338,1773575448351,-500.0,0.00040999,30]
[408412339,1773575448360,-219.23011724,0.00040999,30]
[408412340,1773575448368,-500.0,0.00040999,30]
[408412341,1773575448378,-500.0,0.00040999,30]
[408412342,1773575448386,-500.0,0.00040999,30]
[408412343,1773575448395,-500.0,0.00040999,30]
[408412344,1773575448404,-500.0,0.00040999,30]
[408412345,1773575448413,-500.0,0.00040999,30]
[408412346,1773575448422,-500.0,0.00040999,30]
[408412347,1773575448431,-500.0,0.00040999,30]
[408412348,1773575448440,-500.0,0.00040999,30]
[408412349,1773575448449,-500.0,0.00040999,30]
[408412350,1773575448458,-500.0,0.00040999,30]
[408412351,1773575448467,-500.0,0.00040999,30]
[408412352,1773575448476,-500.0,0.00040999,30]
[408412353,1773575448485,-500.0,0.00040999,30]
[408412354,1773575448494,-2865.05,0.00040999,2]
[408412355,1773575448503,-3190.33,0.00040999,2]
[408412356,1773575448513,-32465.91,0.00040999,2]
[408412357,1773575448521,-1488.13,0.00040999,2]
[408412358,1773575448530,-500.0,0.00040999,2]
[408412359,1773575448540,-6056.24919619,0.00040999,2]
[408412361,1773576096968,2544.71769995,0.0001189,2]
[408412362,1773576156041,10000.01,9.5e-05,3]
[408412363,1773576156064,10000.01,9.5e-05,3]
[408412364,1773576156088,10000.01,9.5e-05,3]
[408412365,1773576156110,10000.01,9.5e-05,3]
[408412366,1773576156131,10000.01,9.5e-05,3]
[408412367,1773576156153,10000.01,9.5e-05,3]
[408412368,1773576156178,10000.01,9.5e-05,3]
[408412369,1773576156200,10000.01,9.5e-05,3]
[408412370,1773576156232,62230.59397089,9.5e-05,3]
[408412371,1773576156258,100000.0,9.5e-05,3]
[408412372,1773576156283,100000.0,9.5e-05,3]
[408412373,1773576156308,13700.0,9.5e-05,3]
[408412374,1773576156330,1151.24768268,9.5e-05,3]
[408412375,1773576156354,1151.24768268,9.5e-05,3]
[408412376,1773576156375,1151.24768268,9.5e-05,3]
[408412377,1773576156396,1151.24768268,9.5e-05,3]
[408412378,1773576156417,1151.24768268,9.5e-05,3]
[408412379,1773576156437,1151.24768268,9.5e-05,3]
[408412380,1773576156459,1151.24768268,9.5e-05,3]
[408412381,1773576156480,1151.24768268,9.5e-05,3]
[408412382,1773576156502,1151.24768268,9.5e-05,3]
[408412383,1773576156523,1151.24768268,9.5e-05,3]
[408412384,1773576156548,100000.0,9.5e-05,3]
[408412385,1773576156577,100000.0,9.5e-05,3]
[408412386,1773576156601,100000.0,9.5e-05,3]
[408412387,1773576181523,-291.47238157,9.499e-05,2]
[408412388,1773576181555,-643.65683628,9.499e-05,2]
[408412389,1773576181588,-421.38751934,9.499e-05,2]
[408412390,1773576181695,-1612.75243578,9.5e-05,3]
[408412391,1773576181756,-10000.01,9.5e-05,3]
[408412392,1773576181888,-10000.01,9.5e-05,3]
[408412393,1773576182148,-10000.01,9.5e-05,3]
[408412394,1773576182291,-10000.01,9.5e-05,3]
[408412395,1773576182473,-10000.01,9.5e-05,3]
[408412396,1773576182634,-10000.01,9.5e-05,3]
[408412397,1773576182787,-10000.01,9.5e-05,3]
[408412398,1773576182904,-10000.01,9.5e-05,3]
[408412399,1773576184481,-10000.01,9.5e-05,3]
[408412400,1773576187527,-10000.01,9.5e-05,3]
[408412401,1773576187676,-10000.01,9.5e-05,3]
[408412402,1773576187823,-10000.01,9.5e-05,3]
[408412403,1773576187925,-10000.01,9.5e-05,3]
[408412404,1773576188037,-10000.01,9.5e-05,3]
[408412405,1773576188160,-10000.01,9.5e-05,3]
[408412406,1773576188258,-10000.01,9.5e-05,3]
[408412407,1773576188385,-10000.01,9.5e-05,3]
[408412408,1773576193725,-10000.01,9.5e-05,3]
[408412409,1773576200698,-10000.01,9.5e-05,3]
[408412410,1773576203924,-10000.01,9.5e-05,3]
[408412411,1773576204188,-10000.01,9.5e-05,3]
[408412412,1773576204365,-10000.01,9.5e-05,3]
[408412413,1773576204469,-308.89792947,8.5e-05,2]
[408412414,1773576204508,-9382.21414106,9.5e-05,3]
[408412415,1773576204685,-10000.01,9.5e-05,3]
[408412416,1773576204812,-10000.01,9.5e-05,3]
[408412417,1773576204923,-10000.01,9.5e-05,3]
[408412418,1773576206876,-10000.01,9.5e-05,3]
[408412419,1773576209851,-10000.01,9.5e-05,3]
[408412420,1773576209982,-10000.01,9.5e-05,3]
[408412421,1773576210113,-10000.01,9.5e-05,3]
[408412422,1773576210231,-10000.01,9.5e-05,3]
[408412423,1773576210335,-10000.01,9.5e-05,3]
[408412424,1773576210457,-10000.01,9.5e-05,3]
[408412425,1773576210595,-10000.01,9.5e-05,3]
[408412426,1773576216005,-10000.01,9.5e-05,3]
[408412427,1773576216128,-10000.01,9.5e-05,3]
[408412428,1773576219058,-10000.01,9.5e-05,3]
[408412429,1773576264274,343.70368784,9.4e-05,2]
[408412430,1773576301440,300.0,9.499e-05,2]
[408412431,1773576301468,212.0,9.499e-05,2]
[408412432,1773576301499,1200.0,9.499e-05,2]
[408412433,1773576338910,-175.84376146,9.5e-05,3]
[408412434,1773576338996,-164.95,9.5e-05,3]
[408412435,1773576339102,-455.78418235,9.5e-05,3]
[408412436,1773576339204,-327.55430245,9.5e-05,3]
[408412437,1773576339288,-448.36761694,9.5e-05,3]
[408412438,1773576339366,-392.33966568,9.5e-05,3]
[408412439,1773576339456,-1326.92848059,9.5e-05,3]
[408412440,1773576339537,-332.01075348,9.5e-05,3]
[408412441,1773576339638,-366.29277341,9.5e-05,3]
[408412442,1773576339922,-245.4734,9.5e-05,3]
[408412443,1773576339957,-394.0,9.5e-05,3]
[408412444,1773576340039,-1200.0,9.5e-05,3]
[408412445,1773576340130,-884.35576939,9.5e-05,3]
[408412446,1773576340218,-315.64423061,9.5e-05,3]
[408412447,1773576340308,-168.25227208,9.5e-05,3]
[408412448,1773576340435,-223.88393344,9.5e-05,3]
[408412449,1773576340530,-166.66,9.5e-05,3]
[408412450,1773576340631,-239.377726,9.5e-05,3]
[408412451,1773576340717,-370.40017,9.5e-05,3]
[408412452,1773576340803,-311.06161486,9.5e-05,3]
[408412453,1773576340908,-500.0,9.5e-05,3]
[408412454,1773576340994,-176.43445258,9.5e-05,3]
[408412455,1773576341094,-166.66,9.5e-05,3]
[408412456,1773576341180,-166.66,9.5e-05,3]
[408412457,1773576341264,-366.70880056,9.5e-05,3]
[408412458,1773576341367,-308.86589156,9.5e-05,3]
[408412459,1773576341558,-172.0,9.5e-05,3]
[408412460,1773576341653,-1000.0,9.5e-05,3]
[408412461,1773576341769,-2070.41922102,9.5e-05,3]
[408412462,1773576341848,-299.269787,9.5e-05,3]
[408412463,1773576362569,300.0,9.499e-05,2]
[408412464,1773576364222,150.0,9.499e-05,2]
[408412465,1773576364315,-7494.30631216,9.5e-05,3]
[408412466,1773576364503,-10000.01,9.5e-05,3]
[408412467,1773576364646,-10000.01,9.5e-05,3]
[408412468,1773576364759,-10000.01,9.5e-05,3]
[408412469,1773576364919,-10000.01,9.5e-05,3]
[408412470,1773576365035,-10000.01,9.5e-05,3]
[408412471,1773576365209,-10000.01,9.5e-05,3]
[408412472,1773576365330,-10000.01,9.5e-05,3]
[408412473,1773576365471,-10000.01,9.5e-05,3]
[408412475,1773576391119,-262.55304211,9.5e-05,3]
[408412476,1773576395862,3556.45536018,9.4e-05,2]
[408412477,1773576480012,-500.0,9.499e-05,2]
[408412478,1773576480042,-500.0,9.499e-05,2]
[408412479,1773576480073,-500.0,9.499e-05,2]
[408412480,1773576480104,-500.0,9.499e-05,2]
[408412481,1773576480137,-500.0,9.499e-05,2]
[408412482,1773576480279,-500.0,9.499e-05,2]
[408412483,1773576480308,-500.0,9.499e-05,2]
[408412484,1773576480337,-500.0,9.499e-05,2]
[408412485,1773576480370,-500.0,9.499e-05,2]
[408412486,1773576480400,-500.0,9.499e-05,2]
[408412487,1773576480511,-500.0,9.499e-05,2]
[408412488,1773576480540,-500.0,9.499e-05,2]
[408412489,1773576480569,-500.0,9.499e-05,2]
[408412490,1773576481104,-1521.34086301,9.5e-05,3]
[408412491,1773576481159,-5000.01,9.5e-05,3]
[408412492,1773576481183,-5000.01,9.5e-05,3]
[408412493,1773576481204,-5000.01,9.5e-05,3]
[408412494,1773576481217,-5000.01,9.5e-05,3]
[408412495,1773576481241,-5000.01,9.5e-05,3]
[408412496,1773576482852,-5000.01,9.5e-05,3]
[408412497,1773576483055,-5000.01,9.5e-05,3]
[408412498,1773576483159,-5000.01,9.5e-05,3]
[408412499,1773576483266,-5000.01,9.5e-05,3]
[408412500,1773576483384,-5000.01,9.5e-05,3]
[408412501,1773576483488,-5000.01,9.5e-05,3]
[408412502,1773576483608,-5000.01,9.5e-05,3]
[408412503,1773576483744,-5000.01,9.5e-05,3]
[408412504,1773576483863,-5000.01,9.5e-05,3]
[408412505,1773576483981,-5000.01,9.5e-05,3]
[408412506,1773576486037,-5000.01,9.5e-05,3]
[408412507,1773576486236,-5000.01,9.5e-05,3]
[408412508,1773576486374,-5000.01,9.5e-05,3]
[408412509,1773576486502,-5000.01,9.5e-05,3]
[408412510,1773576486614,-5000.01,9.5e-05,3]
[408412511,1773576486843,-5000.01,9.5e-05,3]
[408412512,1773576487008,-5000.01,9.5e-05,3]
[408412513,1773576487127,-5000.01,9.5e-05,3]
[408412514,1773576487240,-5000.01,9.5e-05,3]
[408412515,1773576487381,-5000.01,9.5e-05,3]
[408412516,1773576491924,-5000.01,9.5e-05,3]
[408412517,1773576492023,-5000.01,9.5e-05,3]
[408412518,1773576498024,-5000.01,9.5e-05,3]
[408412519,1773576498136,-5000.01,9.5e-05,3]
[408412520,1773576573136,-204.0306671,9.499e-05,2]
[408412521,1773576573159,-500.0,9.499e-05,2]
[408412522,1773576573180,-500.0,9.499e-05,2]
[408412523,1773576573201,-500.0,9.499e-05,2]
[408412524,1773576573223,-500.0,9.499e-05,2]
[408412525,1773576573244,-500.0,9.499e-05,2]
[408412526,1773576573266,-500.0,9.499e-05,2]
[408412527,1773576573287,-500.0,9.499e-05,2]
[408412528,1773576573312,-500.0,9.499e-05,2]
[408412529,1773576573336,-500.0,9.499e-05,2]
[408412530,1773576573358,-182.55970423,9.499e-05,2]
[408412531,1773576573381,-500.0,9.499e-05,2]
[408412532,1773576573403,-500.0,9.499e-05,2]
[408412533,1773576573425,-500.0,9.499e-05,2]
[408412534,1773576573448,-500.0,9.499e-05,2]
[408412535,1773576573471,-500.0,9.499e-05,2]
[408412536,1773576573495,-500.0,9.499e-05,2]
[408412537,1773576573519,-500.0,9.499e-05,2]
[408412538,1773576573542,-500.0,9.499e-05,2]
[408412539,1773576573567,-500.0,9.499e-05,2]
[408412540,1773576573588,-500.0,9.499e-05,2]
[408412541,1773576573611,-500.0,9.499e-05,2]
[408412542,1773576573633,-500.0,9.499e-05,2]
[408412543,1773576573655,-500.0,9.499e-05,2]
[408412544,1773576573680,-500.0,9.499e-05,2]
[408412545,1773576573704,-500.0,9.499e-05,2]